[Event "Titled Tuesday Blitz July 25 Early 2023"]
[White "FREDERICKtheMATE"]
[Black "Sariego Figueredo, Wilfredo"]
[BlackFideId "3500080"]
[WhiteElo "2397"]
[BlackElo "2202"]
[Result "1/2-1/2"]
[Round "4"]
[TimeControl "180+2"]
[Date "2023.07.25"]
[WhiteClock "0:01:59"]
[BlackClock "0:01:44"]
[Board "231"]

1. Nf3 {[%clk 0:03:00]}  d5 {[%clk 0:02:59]} 2. g3 {[%clk 0:03:01]}  Nf6 {[%clk 0:02:59]} 3. Bg2 {[%clk 0:03:02]}  c5 {[%clk 0:03:00]} 4. O-O {[%clk 0:03:02]}  Nc6 {[%clk 0:03:01]} 5. c3 {[%clk 0:03:01]}  e5 {[%clk 0:03:01]} 6. d4 {[%clk 0:03:02]}  cxd4 {[%clk 0:03:00]} 7. cxd4 {[%clk 0:03:02]}  e4 {[%clk 0:03:00]} 8. Ne5 {[%clk 0:03:03]}  Bd6 {[%clk 0:02:56]} 9. Nxc6 {[%clk 0:03:02]}  bxc6 {[%clk 0:02:56]} 10. Qc2 {[%clk 0:03:03]}  Bd7 {[%clk 0:02:56]} 11. Bg5 {[%clk 0:03:02]}  h6 {[%clk 0:02:55]} 12. Bxf6 {[%clk 0:03:02]}  Qxf6 {[%clk 0:02:56]} 13. e3 {[%clk 0:03:02]}  O-O {[%clk 0:02:55]} 14. Nc3 {[%clk 0:03:02]}  Rfc8 {[%clk 0:02:55]} 15. Na4 {[%clk 0:03:02]}  Rab8 {[%clk 0:02:42]} 16. Rab1 {[%clk 0:02:56]}  Qe7 {[%clk 0:02:32]} 17. Rfc1 {[%clk 0:02:54]}  Rb5 {[%clk 0:02:22]} 18. Bf1 {[%clk 0:02:52]}  Rbb8 {[%clk 0:02:14]} 19. Nc5 {[%clk 0:02:50]}  Bg4 {[%clk 0:02:08]} 20. b4 {[%clk 0:02:46]}  h5 {[%clk 0:02:00]} 21. Be2 {[%clk 0:02:37]}  Bxe2 {[%clk 0:01:55]} 22. Qxe2 {[%clk 0:02:38]}  h4 {[%clk 0:01:55]} 23. Qg4 {[%clk 0:02:27]}  hxg3 {[%clk 0:01:53]} 24. hxg3 {[%clk 0:02:28]}  Bxc5 {[%clk 0:01:53]} 25. bxc5 {[%clk 0:02:27]}  Qc7 {[%clk 0:01:53]} 26. Kg2 {[%clk 0:02:22]}  Rxb1 {[%clk 0:01:49]} 27. Rxb1 {[%clk 0:02:23]}  Rb8 {[%clk 0:01:50]} 28. Rxb8+ {[%clk 0:02:22]}  Qxb8 {[%clk 0:01:50]} 29. Qd7 {[%clk 0:02:22]}  Qa8 {[%clk 0:01:49]} 30. Qc7 {[%clk 0:02:19]}  a5 {[%clk 0:01:48]} 31. a4 {[%clk 0:02:19]}  Qa6 {[%clk 0:01:44]} 32. Qb6 {[%clk 0:02:10]}  Qe2 {[%clk 0:01:44]} 33. Qxc6 {[%clk 0:02:07]}  Qf3+ {[%clk 0:01:43]} 34. Kg1 {[%clk 0:02:06]}  Qd1+ {[%clk 0:01:43]} 35. Kh2 {[%clk 0:02:06]}  Qh5+ {[%clk 0:01:44]} 36. Kg2 {[%clk 0:01:59]}  Qf3+ {[%clk 0:01:43]} 37. Kh3 {[%clk 0:01:59]}  Qh5+ {[%clk 0:01:43]} 38. Kg2 {[%clk 0:01:59]}  Qf3+ {[%clk 0:01:44]} 1/2-1/2


[Site "https://www.chess.com"]

[Event "Titled Tuesday Blitz July 25 Early 2023"]
[White "Phillips, Rene"]
[Black "Slovineanu, Viacheslav"]
[WhiteFideId "2056275"]
[BlackFideId "13900510"]
[WhiteElo "2122"]
[BlackElo "2334"]
[Result "1-0"]
[Round "4"]
[TimeControl "180+2"]
[Date "2023.07.25"]
[WhiteClock "0:00:27"]
[BlackClock "0:00:03"]
[Board "236"]

1. d4 {[%clk 0:03:00]}  Nf6 {[%clk 0:02:55]} 2. Bf4 {[%clk 0:03:01]}  d5 {[%clk 0:02:55]} 3. e3 {[%clk 0:03:02]}  e6 {[%clk 0:02:55]} 4. Nf3 {[%clk 0:03:02]}  c5 {[%clk 0:02:56]} 5. c3 {[%clk 0:03:02]}  Bd6 {[%clk 0:02:56]} 6. Bg3 {[%clk 0:03:01]}  Qc7 {[%clk 0:02:56]} 7. Ne5 {[%clk 0:03:00]}  Ne4 {[%clk 0:02:44]} 8. f4 {[%clk 0:02:59]}  Nd7 {[%clk 0:02:34]} 9. Nd2 {[%clk 0:02:57]}  Ndf6 {[%clk 0:02:34]} 10. Bd3 {[%clk 0:02:55]}  b6 {[%clk 0:02:28]} 11. Nxe4 {[%clk 0:02:47]}  Nxe4 {[%clk 0:02:24]} 12. Bb5+ {[%clk 0:02:46]}  Ke7 {[%clk 0:02:17]} 13. Qh5 {[%clk 0:02:32]}  Kf8 {[%clk 0:01:27]} 14. Bc6 {[%clk 0:01:42]}  Bb7 {[%clk 0:01:17]} 15. Bxb7 {[%clk 0:01:36]}  Qxb7 {[%clk 0:01:17]} 16. Bh4 {[%clk 0:01:32]}  Nf6 {[%clk 0:00:47]} 17. Bxf6 {[%clk 0:01:30]}  gxf6 {[%clk 0:00:48]} 18. Qh6+ {[%clk 0:01:23]}  Ke7 {[%clk 0:00:45]} 19. Ng4 {[%clk 0:01:23]}  Raf8 {[%clk 0:00:28]} 20. Qxf6+ {[%clk 0:01:22]}  Ke8 {[%clk 0:00:25]} 21. Qh6 {[%clk 0:01:10]}  Be7 {[%clk 0:00:15]} 22. O-O {[%clk 0:01:08]}  Rhg8 {[%clk 0:00:13]} 23. Nf6+ {[%clk 0:01:07]}  Bxf6 {[%clk 0:00:13]} 24. Qxf6 {[%clk 0:01:08]}  Rg6 {[%clk 0:00:13]} 25. Qe5 {[%clk 0:01:03]}  Rfg8 {[%clk 0:00:14]} 26. g3 {[%clk 0:01:02]}  Kd7 {[%clk 0:00:14]} 27. f5 {[%clk 0:01:01]}  exf5 {[%clk 0:00:10]} 28. Qxf5+ {[%clk 0:01:01]}  Kd8 {[%clk 0:00:08]} 29. Rf3 {[%clk 0:00:54]}  h5 {[%clk 0:00:06]} 30. Qxh5 {[%clk 0:00:52]}  Qc7 {[%clk 0:00:05]} 31. Qh4+ {[%clk 0:00:52]}  Qe7 {[%clk 0:00:05]} 32. Qf4 {[%clk 0:00:50]}  Kc8 {[%clk 0:00:04]} 33. Raf1 {[%clk 0:00:48]}  R8g7 {[%clk 0:00:04]} 34. dxc5 {[%clk 0:00:44]}  Qxc5 {[%clk 0:00:04]} 35. Kh1 {[%clk 0:00:43]}  Kb7 {[%clk 0:00:04]} 36. Qe5 {[%clk 0:00:38]}  Qc7 {[%clk 0:00:03]} 37. Qxd5+ {[%clk 0:00:37]}  Ka6 {[%clk 0:00:03]} 38. Rf4 {[%clk 0:00:35]}  b5 {[%clk 0:00:02]} 39. a4 {[%clk 0:00:34]}  Qb6 {[%clk 0:00:03]} 40. axb5+ {[%clk 0:00:33]}  Qxb5 {[%clk 0:00:03]} 41. Qa2+ {[%clk 0:00:30]}  Kb7 {[%clk 0:00:03]} 42. Rxf7+ {[%clk 0:00:30]}  Rxf7 {[%clk 0:00:02]} 43. Rxf7+ {[%clk 0:00:31]}  Kb6 {[%clk 0:00:03]} 44. Qxa7+ {[%clk 0:00:30]}  Kc6 {[%clk 0:00:03]} 45. Qc7+ {[%clk 0:00:28]}  Kd5 {[%clk 0:00:03]} 46. Rf5+ {[%clk 0:00:27]} 1-0


[Site "https://www.chess.com"]

[Event "Titled Tuesday Blitz July 25 Early 2023"]
[White "Abdi, Farzad"]
[Black "Makhmudov, Shukhrat"]
[WhiteFideId "2076829"]
[BlackFideId "14200775"]
[WhiteElo "2104"]
[BlackElo "2333"]
[Result "0-1"]
[Round "4"]
[TimeControl "180+2"]
[Date "2023.07.25"]
[WhiteClock "0:00:38"]
[BlackClock "0:01:10"]
[Board "237"]

1. d4 {[%clk 0:03:00]}  Nf6 {[%clk 0:02:59]} 2. c4 {[%clk 0:02:59]}  e6 {[%clk 0:03:00]} 3. Nf3 {[%clk 0:02:56]}  d5 {[%clk 0:02:59]} 4. Nc3 {[%clk 0:02:55]}  Bb4 {[%clk 0:02:58]} 5. e3 {[%clk 0:02:52]}  O-O {[%clk 0:02:57]} 6. Bd3 {[%clk 0:02:49]}  dxc4 {[%clk 0:02:57]} 7. Bxc4 {[%clk 0:02:50]}  c5 {[%clk 0:02:57]} 8. Qe2 {[%clk 0:02:49]}  Qc7 {[%clk 0:02:55]} 9. O-O {[%clk 0:02:47]}  cxd4 {[%clk 0:02:50]} 10. exd4 {[%clk 0:02:46]}  Bxc3 {[%clk 0:02:49]} 11. bxc3 {[%clk 0:02:44]}  Nc6 {[%clk 0:02:48]} 12. Bg5 {[%clk 0:02:33]}  Nd5 {[%clk 0:02:47]} 13. Rac1 {[%clk 0:02:30]}  b6 {[%clk 0:02:42]} 14. Bd3 {[%clk 0:02:03]}  Nf4 {[%clk 0:02:24]} 15. Qe4 {[%clk 0:02:00]}  Nxd3 {[%clk 0:02:20]} 16. Qxd3 {[%clk 0:01:59]}  Bb7 {[%clk 0:02:13]} 17. c4 {[%clk 0:01:57]}  f6 {[%clk 0:02:10]} 18. Bh4 {[%clk 0:01:55]}  Rad8 {[%clk 0:02:10]} 19. Qe3 {[%clk 0:01:42]}  Rfe8 {[%clk 0:02:02]} 20. Bg3 {[%clk 0:01:37]}  Qd7 {[%clk 0:01:57]} 21. Rfd1 {[%clk 0:01:35]}  Nb4 {[%clk 0:01:48]} 22. a3 {[%clk 0:01:28]}  Nc6 {[%clk 0:01:38]} 23. h4 {[%clk 0:01:11]}  Ne7 {[%clk 0:01:27]} 24. Bf4 {[%clk 0:00:44]}  Nf5 {[%clk 0:01:23]} 25. Qe2 {[%clk 0:00:40]}  Bxf3 {[%clk 0:01:19]} 26. Qxf3 {[%clk 0:00:39]}  Nxd4 {[%clk 0:01:12]} 27. Qg4 {[%clk 0:00:38]}  e5 {[%clk 0:01:10]} 0-1


[Site "https://www.chess.com"]

[Event "Titled Tuesday Blitz July 25 Early 2023"]
[White "Wisniowski, Natalie"]
[Black "BenchGM"]
[WhiteFideId "30929261"]
[WhiteElo "2052"]
[BlackElo "2314"]
[Result "1-0"]
[Round "4"]
[TimeControl "180+2"]
[Date "2023.07.25"]
[WhiteClock "0:00:21"]
[BlackClock "0:00:01"]
[Board "242"]

1. e4 {[%clk 0:02:58]}  c5 {[%clk 0:02:58]} 2. d4 {[%clk 0:02:57]}  cxd4 {[%clk 0:02:57]} 3. c3 {[%clk 0:02:58]}  dxc3 {[%clk 0:02:56]} 4. Nxc3 {[%clk 0:02:58]}  Nc6 {[%clk 0:02:56]} 5. Nf3 {[%clk 0:02:58]}  e6 {[%clk 0:02:57]} 6. Bc4 {[%clk 0:02:58]}  Qc7 {[%clk 0:02:57]} 7. O-O {[%clk 0:02:57]}  Nf6 {[%clk 0:02:57]} 8. Re1 {[%clk 0:02:56]}  Bc5 {[%clk 0:02:27]} 9. h3 {[%clk 0:02:45]}  d6 {[%clk 0:02:21]} 10. Bf4 {[%clk 0:02:42]}  O-O {[%clk 0:02:11]} 11. Bh2 {[%clk 0:02:39]}  Ne5 {[%clk 0:02:03]} 12. Bb3 {[%clk 0:02:34]}  Bd7 {[%clk 0:01:49]} 13. Qe2 {[%clk 0:02:29]}  a6 {[%clk 0:01:27]} 14. Rac1 {[%clk 0:02:28]}  b5 {[%clk 0:00:55]} 15. Red1 {[%clk 0:02:22]}  Rac8 {[%clk 0:00:54]} 16. Nb1 {[%clk 0:02:16]}  Qa7 {[%clk 0:00:47]} 17. Nbd2 {[%clk 0:02:09]}  Rfd8 {[%clk 0:00:45]} 18. Nxe5 {[%clk 0:02:07]}  dxe5 {[%clk 0:00:44]} 19. Bxe5 {[%clk 0:02:07]}  Bd4 {[%clk 0:00:23]} 20. Nf3 {[%clk 0:01:59]}  Rxc1 {[%clk 0:00:21]} 21. Rxc1 {[%clk 0:01:58]}  Bxe5 {[%clk 0:00:19]} 22. Nxe5 {[%clk 0:01:59]}  Be8 {[%clk 0:00:19]} 23. Rd1 {[%clk 0:01:21]}  Rc8 {[%clk 0:00:15]} 24. Qf3 {[%clk 0:01:12]}  Qc5 {[%clk 0:00:15]} 25. Nd3 {[%clk 0:01:10]}  Qc6 {[%clk 0:00:12]} 26. Re1 {[%clk 0:01:06]}  a5 {[%clk 0:00:10]} 27. Ne5 {[%clk 0:01:01]}  Qc5 {[%clk 0:00:10]} 28. Ng4 {[%clk 0:01:00]}  Nxg4 {[%clk 0:00:10]} 29. Qxg4 {[%clk 0:01:00]}  a4 {[%clk 0:00:10]} 30. Bd1 {[%clk 0:01:00]}  Qb4 {[%clk 0:00:10]} 31. Qe2 {[%clk 0:00:58]}  Rd8 {[%clk 0:00:08]} 32. a3 {[%clk 0:00:42]}  Qd2 {[%clk 0:00:07]} 33. Bc2 {[%clk 0:00:33]}  Qa5 {[%clk 0:00:06]} 34. Bd3 {[%clk 0:00:31]}  e5 {[%clk 0:00:05]} 35. Rc1 {[%clk 0:00:28]}  Qb6 {[%clk 0:00:04]} 36. Rc3 {[%clk 0:00:24]}  g6 {[%clk 0:00:03]} 37. Qc2 {[%clk 0:00:24]}  Qd4 {[%clk 0:00:02]} 38. Qe2 {[%clk 0:00:21]}  f6 {[%clk 0:00:01]} 39. Bxb5 {[%clk 0:00:21]} 1-0


[Site "https://www.chess.com"]

[Event "Titled Tuesday Blitz July 25 Early 2023"]
[White "Grekh, Andrey"]
[Black "Bogumil, Tatiana"]
[WhiteFideId "14112418"]
[BlackFideId "4110579"]
[WhiteElo "2302"]
[BlackElo "2032"]
[Result "1-0"]
[Round "4"]
[TimeControl "180+2"]
[Date "2023.07.25"]
[WhiteClock "0:00:43"]
[BlackClock "0:00:04"]
[Board "245"]

1. e4 {[%clk 0:03:00]}  e6 {[%clk 0:02:59]} 2. d4 {[%clk 0:02:59]}  d5 {[%clk 0:02:59]} 3. Nd2 {[%clk 0:03:00]}  dxe4 {[%clk 0:02:58]} 4. Nxe4 {[%clk 0:03:00]}  Bd7 {[%clk 0:02:59]} 5. Nf3 {[%clk 0:02:59]}  Bc6 {[%clk 0:02:59]} 6. Bd3 {[%clk 0:02:59]}  Nd7 {[%clk 0:02:59]} 7. O-O {[%clk 0:02:59]}  Ngf6 {[%clk 0:02:59]} 8. Qe2 {[%clk 0:02:57]}  Be7 {[%clk 0:02:53]} 9. c3 {[%clk 0:02:56]}  O-O {[%clk 0:02:38]} 10. Bf4 {[%clk 0:02:53]}  Nxe4 {[%clk 0:02:37]} 11. Bxe4 {[%clk 0:02:53]}  Bxe4 {[%clk 0:02:37]} 12. Qxe4 {[%clk 0:02:54]}  c6 {[%clk 0:02:38]} 13. Ne5 {[%clk 0:02:53]}  Nf6 {[%clk 0:02:34]} 14. Qf3 {[%clk 0:02:51]}  Nd5 {[%clk 0:02:34]} 15. Rfe1 {[%clk 0:02:47]}  Bg5 {[%clk 0:02:14]} 16. Bxg5 {[%clk 0:02:36]}  Qxg5 {[%clk 0:02:15]} 17. Rad1 {[%clk 0:02:36]}  Rad8 {[%clk 0:02:11]} 18. Qg3 {[%clk 0:02:31]}  Qxg3 {[%clk 0:02:10]} 19. hxg3 {[%clk 0:02:32]}  Rfe8 {[%clk 0:02:04]} 20. Nd3 {[%clk 0:02:32]}  b6 {[%clk 0:01:55]} 21. f4 {[%clk 0:02:31]}  g6 {[%clk 0:01:53]} 22. Kf2 {[%clk 0:02:31]}  h5 {[%clk 0:01:51]} 23. Kf3 {[%clk 0:02:28]}  Nf6 {[%clk 0:01:46]} 24. Ne5 {[%clk 0:02:27]}  Rc8 {[%clk 0:01:44]} 25. c4 {[%clk 0:02:23]}  Red8 {[%clk 0:01:41]} 26. Rd3 {[%clk 0:02:04]}  Nd7 {[%clk 0:01:21]} 27. Red1 {[%clk 0:01:55]}  Nf6 {[%clk 0:01:15]} 28. b3 {[%clk 0:01:52]}  Kf8 {[%clk 0:01:14]} 29. b4 {[%clk 0:01:37]}  Rc7 {[%clk 0:01:10]} 30. g4 {[%clk 0:01:24]}  hxg4+ {[%clk 0:01:07]} 31. Nxg4 {[%clk 0:01:23]}  Nxg4 {[%clk 0:01:07]} 32. Kxg4 {[%clk 0:01:24]}  Rcd7 {[%clk 0:01:04]} 33. Kf3 {[%clk 0:01:22]}  Ke7 {[%clk 0:01:04]} 34. Ke4 {[%clk 0:01:22]}  Rh8 {[%clk 0:00:57]} 35. Rh3 {[%clk 0:01:22]}  Rdd8 {[%clk 0:00:55]} 36. Rdh1 {[%clk 0:01:17]}  Rxh3 {[%clk 0:00:47]} 37. Rxh3 {[%clk 0:01:18]}  Kf6 {[%clk 0:00:47]} 38. g4 {[%clk 0:01:17]}  Rd7 {[%clk 0:00:38]} 39. Rh8 {[%clk 0:01:16]}  Kg7 {[%clk 0:00:35]} 40. Rc8 {[%clk 0:01:14]}  Rd6 {[%clk 0:00:30]} 41. Ke5 {[%clk 0:01:14]}  Rd7 {[%clk 0:00:28]} 42. Rxc6 {[%clk 0:01:14]}  f6+ {[%clk 0:00:13]} 43. Ke4 {[%clk 0:01:08]}  Kf7 {[%clk 0:00:12]} 44. c5 {[%clk 0:01:01]}  bxc5 {[%clk 0:00:11]} 45. bxc5 {[%clk 0:01:00]}  Rb7 {[%clk 0:00:10]} 46. Ra6 {[%clk 0:01:00]}  Ke7 {[%clk 0:00:08]} 47. c6 {[%clk 0:00:58]}  Rc7 {[%clk 0:00:08]} 48. d5 {[%clk 0:00:58]}  Kd6 {[%clk 0:00:08]} 49. dxe6 {[%clk 0:00:58]}  Kxe6 {[%clk 0:00:09]} 50. f5+ {[%clk 0:00:49]}  gxf5+ {[%clk 0:00:08]} 51. gxf5+ {[%clk 0:00:50]}  Kd6 {[%clk 0:00:09]} 52. Kd4 {[%clk 0:00:45]}  Rf7 {[%clk 0:00:04]} 53. c7+ {[%clk 0:00:43]} 1-0


[Site "https://www.chess.com"]

[Event "Titled Tuesday Blitz July 25 Early 2023"]
[White "Schut, Han"]
[Black "Lohani, Sujana"]
[WhiteFideId "1005561"]
[BlackFideId "12311987"]
[WhiteElo "2293"]
[BlackElo "1930"]
[Result "1-0"]
[Round "4"]
[TimeControl "180+2"]
[Date "2023.07.25"]
[WhiteClock "0:00:15"]
[BlackClock "0:00:01"]
[Board "247"]

1. e4 {[%clk 0:03:00]}  c5 {[%clk 0:03:00]} 2. Nf3 {[%clk 0:03:00]}  Nc6 {[%clk 0:03:01]} 3. d4 {[%clk 0:03:00]}  cxd4 {[%clk 0:03:02]} 4. Nxd4 {[%clk 0:03:01]}  g6 {[%clk 0:02:59]} 5. c4 {[%clk 0:03:00]}  Bg7 {[%clk 0:02:59]} 6. Be3 {[%clk 0:03:00]}  Nf6 {[%clk 0:02:56]} 7. Nc3 {[%clk 0:02:59]}  O-O {[%clk 0:02:55]} 8. Be2 {[%clk 0:02:59]}  d6 {[%clk 0:02:55]} 9. Rc1 {[%clk 0:02:55]}  Bd7 {[%clk 0:02:32]} 10. Qd2 {[%clk 0:02:51]}  Rc8 {[%clk 0:02:28]} 11. f3 {[%clk 0:02:49]}  Ne5 {[%clk 0:02:27]} 12. b3 {[%clk 0:02:48]}  a6 {[%clk 0:02:26]} 13. O-O {[%clk 0:02:47]}  h5 {[%clk 0:02:18]} 14. h3 {[%clk 0:02:45]}  Kh7 {[%clk 0:02:15]} 15. Rfd1 {[%clk 0:02:45]}  Qa5 {[%clk 0:01:48]} 16. f4 {[%clk 0:02:14]}  Nc6 {[%clk 0:01:42]} 17. Bf3 {[%clk 0:01:56]}  Nxd4 {[%clk 0:01:30]} 18. Bxd4 {[%clk 0:01:57]}  Bc6 {[%clk 0:01:29]} 19. Kh1 {[%clk 0:01:52]}  e5 {[%clk 0:01:27]} 20. Be3 {[%clk 0:01:44]}  Rfd8 {[%clk 0:01:22]} 21. Qf2 {[%clk 0:01:30]}  exf4 {[%clk 0:00:58]} 22. Bb6 {[%clk 0:01:29]}  Qg5 {[%clk 0:00:47]} 23. Bxd8 {[%clk 0:01:25]}  Rxd8 {[%clk 0:00:46]} 24. b4 {[%clk 0:01:14]}  Ng8 {[%clk 0:00:40]} 25. a4 {[%clk 0:01:09]}  Bxc3 {[%clk 0:00:36]} 26. Rxc3 {[%clk 0:01:10]}  Bxa4 {[%clk 0:00:36]} 27. Rd5 {[%clk 0:01:08]}  Qf6 {[%clk 0:00:35]} 28. Rcd3 {[%clk 0:00:38]}  Bc6 {[%clk 0:00:33]} 29. e5 {[%clk 0:00:36]}  Qe6 {[%clk 0:00:29]} 30. Rxd6 {[%clk 0:00:37]}  Rxd6 {[%clk 0:00:21]} 31. exd6 {[%clk 0:00:37]}  Nf6 {[%clk 0:00:17]} 32. Bxc6 {[%clk 0:00:34]}  bxc6 {[%clk 0:00:15]} 33. c5 {[%clk 0:00:34]}  Nd7 {[%clk 0:00:11]} 34. Qxf4 {[%clk 0:00:28]}  Qe1+ {[%clk 0:00:10]} 35. Kh2 {[%clk 0:00:28]}  Qe2 {[%clk 0:00:05]} 36. Qxf7+ {[%clk 0:00:23]}  Kh6 {[%clk 0:00:05]} 37. Qf4+ {[%clk 0:00:15]}  Kh7 {[%clk 0:00:04]} 38. Qe3 {[%clk 0:00:15]}  Qa2 {[%clk 0:00:01]} 39. Qe7+ {[%clk 0:00:14]}  Kh6 {[%clk 0:00:01]} 40. Qxd7 {[%clk 0:00:15]} 1-0


[Site "https://www.chess.com"]

[Event "Titled Tuesday Blitz July 25 Early 2023"]
[White "Mikheeva, Galina"]
[Black "Romero Arzuaga, Yudel"]
[WhiteFideId "44108320"]
[BlackFideId "3521010"]
[WhiteElo "1902"]
[BlackElo "2283"]
[Result "0-1"]
[Round "4"]
[TimeControl "180+2"]
[Date "2023.07.25"]
[WhiteClock "0:00:01"]
[BlackClock "0:01:07"]
[Board "248"]

1. e4 {[%clk 0:03:00]}  d5 {[%clk 0:02:59]} 2. exd5 {[%clk 0:02:58]}  Qxd5 {[%clk 0:03:00]} 3. Nc3 {[%clk 0:02:56]}  Qd8 {[%clk 0:03:01]} 4. Bc4 {[%clk 0:02:55]}  c6 {[%clk 0:03:01]} 5. d4 {[%clk 0:02:55]}  Bf5 {[%clk 0:03:01]} 6. Bf4 {[%clk 0:02:53]}  e6 {[%clk 0:03:01]} 7. Nge2 {[%clk 0:02:50]}  Nf6 {[%clk 0:03:00]} 8. O-O {[%clk 0:02:49]}  Bd6 {[%clk 0:02:58]} 9. Qd2 {[%clk 0:02:46]}  Qc7 {[%clk 0:02:56]} 10. Bxd6 {[%clk 0:02:41]}  Qxd6 {[%clk 0:02:56]} 11. a4 {[%clk 0:02:37]}  Nbd7 {[%clk 0:02:54]} 12. Bd3 {[%clk 0:02:29]}  Bg6 {[%clk 0:02:52]} 13. Bxg6 {[%clk 0:02:20]}  hxg6 {[%clk 0:02:51]} 14. Qf4 {[%clk 0:02:21]}  Qxf4 {[%clk 0:02:44]} 15. Nxf4 {[%clk 0:02:20]}  Nd5 {[%clk 0:02:44]} 16. Ncxd5 {[%clk 0:02:18]}  cxd5 {[%clk 0:02:44]} 17. Rfe1 {[%clk 0:02:15]}  O-O {[%clk 0:02:41]} 18. Re3 {[%clk 0:02:05]}  Rfc8 {[%clk 0:02:37]} 19. c3 {[%clk 0:02:04]}  Nb6 {[%clk 0:02:35]} 20. Nd3 {[%clk 0:01:59]}  Nc4 {[%clk 0:02:35]} 21. Re2 {[%clk 0:01:58]}  b6 {[%clk 0:02:29]} 22. Rc1 {[%clk 0:01:47]}  Rc7 {[%clk 0:02:25]} 23. Kf1 {[%clk 0:01:37]}  a6 {[%clk 0:02:23]} 24. Ke1 {[%clk 0:01:26]}  Rb8 {[%clk 0:02:22]} 25. Nb4 {[%clk 0:01:08]}  Ra8 {[%clk 0:02:16]} 26. b3 {[%clk 0:00:56]}  Nd6 {[%clk 0:02:15]} 27. f3 {[%clk 0:00:57]}  Nf5 {[%clk 0:02:13]} 28. Kd2 {[%clk 0:00:52]}  a5 {[%clk 0:02:12]} 29. Nd3 {[%clk 0:00:49]}  Rac8 {[%clk 0:02:12]} 30. Ree1 {[%clk 0:00:38]}  Nh4 {[%clk 0:02:08]} 31. Re2 {[%clk 0:00:37]}  Nf5 {[%clk 0:02:08]} 32. Ree1 {[%clk 0:00:37]}  Rb8 {[%clk 0:02:02]} 33. Rc2 {[%clk 0:00:34]}  b5 {[%clk 0:02:00]} 34. axb5 {[%clk 0:00:32]}  Rxb5 {[%clk 0:01:59]} 35. Nc5 {[%clk 0:00:31]}  Nd6 {[%clk 0:01:56]} 36. Ra1 {[%clk 0:00:27]}  Nb7 {[%clk 0:01:56]} 37. Nxb7 {[%clk 0:00:21]}  Rcxb7 {[%clk 0:01:55]} 38. Ra3 {[%clk 0:00:20]}  Rxb3 {[%clk 0:01:51]} 39. Rxa5 {[%clk 0:00:19]}  Rb1 {[%clk 0:01:49]} 40. Ra8+ {[%clk 0:00:19]}  Kh7 {[%clk 0:01:49]} 41. Kd3 {[%clk 0:00:19]}  Rd1+ {[%clk 0:01:47]} 42. Ke2 {[%clk 0:00:16]}  Rh1 {[%clk 0:01:42]} 43. h3 {[%clk 0:00:15]}  g5 {[%clk 0:01:42]} 44. Kf2 {[%clk 0:00:14]}  Kg6 {[%clk 0:01:40]} 45. Re8 {[%clk 0:00:14]}  Rd1 {[%clk 0:01:36]} 46. Ke2 {[%clk 0:00:14]}  Rbb1 {[%clk 0:01:33]} 47. Kf2 {[%clk 0:00:13]}  Rdc1 {[%clk 0:01:33]} 48. Rxc1 {[%clk 0:00:11]}  Rxc1 {[%clk 0:01:33]} 49. Rc8 {[%clk 0:00:12]}  f5 {[%clk 0:01:31]} 50. Rc6 {[%clk 0:00:07]}  Kf6 {[%clk 0:01:29]} 51. Ke2 {[%clk 0:00:06]}  Rc2+ {[%clk 0:01:28]} 52. Kf1 {[%clk 0:00:06]}  g6 {[%clk 0:01:21]} 53. Kg1 {[%clk 0:00:06]}  Ke7 {[%clk 0:01:12]} 54. Kf1 {[%clk 0:00:03]}  Kd7 {[%clk 0:01:12]} 55. Rc5 {[%clk 0:00:03]}  Kd6 {[%clk 0:01:12]} 56. Rc8 {[%clk 0:00:03]}  e5 {[%clk 0:01:12]} 57. dxe5+ {[%clk 0:00:01]}  Kxe5 {[%clk 0:01:12]} 58. Rc6 {[%clk 0:00:01]}  Kf4 {[%clk 0:01:07]} 0-1


[Site "https://www.chess.com"]